fUSD/lending_fUSD_20251012
["ID","MTS","AMOUNT","RATE_DAILY","PERIOD"]
[391076022,1760304648758,-154.227105,0.00020548,7]
[391076023,1760304648767,-154.227105,0.00020548,7]
[391076024,1760304648776,-151.0,0.00020548,7]
[391076025,1760304648785,-151.0,0.00020548,7]
[391076026,1760304648794,-154.227105,0.00020548,7]
[391076027,1760304648804,-151.0,0.00020548,7]
[391076028,1760304648813,-151.0,0.00020548,7]
[391076029,1760304648823,-152.937792,0.00020548,7]
[391076030,1760304648832,-151.0,0.00020548,7]
[391076031,1760304648841,-151.0,0.00020548,7]
[391076032,1760304648850,-151.0,0.00020548,7]
[391076033,1760304648860,-151.0,0.00020548,7]
[391076034,1760304648870,-151.0,0.00020548,7]
[391076035,1760304648880,-2478.09,0.00020554,2]
[391076036,1760304648889,-1852.68,0.00020561,2]
[391076037,1760304648898,-475.28169836,0.000206,7]
[391076038,1760304648907,-176.17,0.00020602,2]
[391076039,1760304648917,-328.79240744,0.00020636,2]
[391076040,1760304648926,-2319.84,0.00020658,2]
[391076041,1760304648935,-1000.0,0.00020795,2]
[391076042,1760304648945,-176.17,0.00020819,2]
[391076043,1760304648954,-168.3888056,0.00020822,2]
[391076044,1760304648963,-2948.97,0.00020908,2]
[391076045,1760304648972,-293.07,0.00020932,2]
[391076046,1760304648982,-988.42,0.00020965,2]
[391076047,1760304648991,-1152.0,0.00020977,2]
[391076048,1760304649000,-1177.8050522,0.00021,2]
[391076049,1760304649009,-194.41334715,0.00021,2]
[391076050,1760304649019,-350.0,0.00021,2]
[391076051,1760304649028,-1000.0,0.00021001,2]
[391076052,1760304649037,-1000.0,0.00021001,2]
[391076053,1760304649046,-1000.0,0.00021001,2]
[391076054,1760304649055,-1000.0,0.00021001,2]
[391076055,1760304649064,-1000.0,0.00021001,2]
[391076056,1760304649074,-300.0,0.00021001,2]
[391076057,1760304649083,-1000.0,0.00021001,2]
[391076058,1760304649092,-8882.6885148,0.00021001,2]
[391076059,1760304649102,-151.0,0.00021001,2]
[391076060,1760304649111,-1000.0,0.00021001,2]
[391076061,1760304649120,-644.79446245,0.00021001,2]
[391076062,1760304649130,-1000.0,0.00021001,2]
[391076063,1760304649139,-1000.0,0.00021001,2]
[391076064,1760304649147,-300.0,0.00021001,2]
[391076065,1760304649156,-1000.0,0.00021001,2]
[391076066,1760304649165,-1000.0,0.00021001,2]
[391076067,1760304649174,-1000.0,0.00021001,2]
[391076068,1760304649183,-398.27322427,0.00021001,2]
[391076069,1760304649192,-1000.0,0.00021001,2]
[391076070,1760304649201,-1000.0,0.00021001,2]
[391076071,1760304649210,-1000.0,0.00021001,2]
[391076072,1760304649220,-1000.0,0.00021001,2]
[391076073,1760304649229,-1000.0,0.00021001,2]
[391076074,1760304649238,-1000.0,0.00021001,2]
[391076075,1760304649247,-1000.0,0.00021001,2]
[391076076,1760304649256,-1000.0,0.00021001,2]
[391076077,1760304649265,-1000.0,0.00021001,2]
[391076078,1760304649274,-1000.0,0.00021001,2]
[391076079,1760304649283,-1000.0,0.00021001,2]
[391076080,1760304649292,-163.31246331,0.00021001,2]
[391076081,1760304649301,-1000.0,0.00021001,2]
[391076082,1760304649310,-1000.0,0.00021001,2]
[391076083,1760304649319,-1000.0,0.00021001,2]
[391076084,1760304649329,-1000.0,0.00021001,2]
[391076085,1760304649338,-1000.0,0.00021001,2]
[391076086,1760304649347,-1000.0,0.00021001,2]
[391076087,1760304649357,-1000.0,0.00021001,2]
[391076088,1760304649366,-1000.0,0.00021001,2]
[391076089,1760304649375,-1000.0,0.00021001,2]
[391076090,1760304649384,-1000.0,0.00021001,2]
[391076091,1760304649395,-1081.0350518,0.00021001,2]
[391076092,1760304649407,-1000.0,0.00021001,2]
[391076093,1760304649416,-1000.0,0.00021001,2]
[391076094,1760304649426,-1000.0,0.00021001,2]
[391076095,1760304649435,-1000.0,0.00021001,2]
[391076096,1760304649446,-1000.0,0.00021001,2]
[391076097,1760304649455,-1000.0,0.00021001,2]
[391076098,1760304649464,-1000.0,0.00021001,2]
[391076099,1760304649474,-151.0,0.00021001,2]
[391076100,1760304649484,-1000.0,0.00021001,2]
[391076101,1760304649494,-1000.0,0.00021001,2]
[391076102,1760304649503,-322.6107,0.00021001,2]
[391076103,1760304649512,-1000.0,0.00021001,2]
[391076104,1760304649521,-500.0,0.00021001,2]
[391076105,1760304649530,-500.0,0.00021001,2]
[391076106,1760304649539,-500.0,0.00021001,2]
[391076107,1760304649549,-500.0,0.00021001,2]
[391076108,1760304649558,-500.0,0.00021001,2]
[391076109,1760304649567,-500.0,0.00021001,2]
[391076110,1760304649576,-500.0,0.00021001,2]
[391076111,1760304649585,-151.0,0.00021001,2]
[391076112,1760304649594,-500.0,0.00021001,2]
[391076113,1760304649604,-500.0,0.00021001,2]
[391076114,1760304649613,-500.0,0.00021001,2]
[391076115,1760304649622,-500.0,0.00021001,2]
[391076116,1760304649631,-500.0,0.00021001,2]
[391076117,1760304649640,-500.0,0.00021001,2]
[391076118,1760304649649,-194.72792766,0.00021001,2]
[391076119,1760304649659,-500.0,0.00021001,2]
[391076120,1760304649667,-500.0,0.00021001,2]
[391076121,1760304649677,-670.58624095,0.00021001,2]
[391076122,1760304649686,-500.0,0.00021001,2]
[391076123,1760304649695,-257.91778498,0.00021001,2]
[391076124,1760304649705,-500.0,0.00021001,2]
[391076125,1760304649714,-500.0,0.00021001,2]
[391076126,1760304649723,-500.0,0.00021001,2]
[391076127,1760304649732,-151.0,0.00021001,7]
[391076128,1760304649741,-254.356668,0.00021001,7]
[391076129,1760304649750,-151.0,0.00021001,7]
[391076130,1760304649759,-7768.35610783,0.00021022,2]
[391076131,1760304649769,-207.100581,0.00021036,7]
[391076132,1760304649778,-207.100581,0.00021036,7]
[391076133,1760304649787,-207.100581,0.00021036,7]
[391076134,1760304649796,-207.100585,0.00021036,7]
[391076135,1760304649806,-187.160443,0.00021036,7]
[391076136,1760304649816,-187.160443,0.00021036,7]
[391076137,1760304649826,-187.160443,0.00021036,7]
[391076138,1760304649835,-187.16044,0.00021036,7]
[391076139,1760304649845,-3293.20751786,0.00021036,2]
[391076140,1760304649856,-9211.34798985,0.00021056,2]
[391076141,1760304649865,-250.0,0.00021062,2]
[391076142,1760304649874,-417.0,0.000211,2]
[391076143,1760304649885,-9552.16786547,0.00021111,2]
[391076144,1760304649894,-151.0,0.00021111,7]
[391076145,1760304649904,-9905.5980765,0.00021166,2]
[391076146,1760304649913,-10272.10520533,0.00021221,2]
[391076147,1760304649922,-199.06590457,0.0002127,2]
[391076148,1760304649932,-10652.17309792,0.00021276,2]
[391076149,1760304649942,-11046.30350255,0.00021331,2]
[391076150,1760304649951,-174.61919141,0.0002137,2]
[391076151,1760304649960,-300.0,0.00021385,2]
[391076152,1760304649970,-11455.01673214,0.00021386,2]
[391076153,1760304649979,-11878.85235123,0.00021441,2]
[391076154,1760304649988,-448.082555,0.00021441,7]
[391076155,1760304649998,-151.0,0.00021441,7]
[391076156,1760304650007,-448.082555,0.00021441,7]
[391076157,1760304650016,-448.082555,0.00021441,7]
[391076158,1760304650026,-177.167268,0.00021441,7]
[391076159,1760304650035,-265.084906,0.00021441,7]
[391076160,1760304650045,-448.082555,0.00021441,7]
[391076161,1760304650054,-177.167268,0.00021441,7]
[391076162,1760304650064,-265.084906,0.00021441,7]
[391076163,1760304650073,-177.167268,0.00021441,7]
[391076164,1760304650082,-265.084906,0.00021441,7]
[391076165,1760304650091,-265.084906,0.00021441,7]
[391076166,1760304650101,-177.167268,0.00021441,7]
[391076167,1760304650111,-151.0,0.00021441,7]
[391076168,1760304650120,-151.0,0.00021441,7]
[391076169,1760304650129,-10498.29955275,0.00021496,2]
[391076170,1760304650138,-219.20255103,0.000215,2]
[391076171,1760304650147,-151.0,0.00021549,2]
[391076172,1760304650156,-250.31078022,0.00021549,2]
[391076173,1760304650165,-256.52099904,0.00021575,2]
[391076174,1760304650174,-350.0,0.0002161,2]
[391076175,1760304650183,-5000.0,0.00021918,2]
[391076176,1760304650192,-181.08010149,0.00021918,2]
[391076177,1760304650202,-351.62673373,0.00021932,10]
[391076178,1760304650211,-8739.4006213,0.00021935,2]
[391076179,1760304650220,-300.0,0.00021999,2]
[391076180,1760304650228,-666.0,0.00021999,2]
[391076181,1760304650238,-154.227105,0.00021999,7]
[391076182,1760304650248,-154.227105,0.00021999,7]
[391076183,1760304650257,-151.0,0.00021999,7]
[391076184,1760304650267,-154.227105,0.00021999,7]
[391076185,1760304650276,-151.0,0.00021999,7]
[391076186,1760304650286,-154.227105,0.00021999,7]
[391076187,1760304650295,-151.0,0.00021999,7]
[391076188,1760304650304,-151.0,0.00021999,7]
[391076189,1760304650313,-273.67353955,0.00021999,7]
[391076190,1760304650322,-151.0,0.00021999,7]
[391076191,1760304650332,-151.0,0.00021999,7]
[391076192,1760304650341,-151.0,0.00021999,7]
[391076193,1760304650353,-151.0,0.00021999,7]
[391076194,1760304650362,-160.97,0.00022,2]
[391076195,1760304650371,-28253.56,0.00022,7]
[391076196,1760304650380,-165.0,0.00022,2]
[391076197,1760304650390,-160.0,0.00022,2]
[391076198,1760304650403,-475.28169836,0.00022,7]
[391076199,1760304650412,-1009.47944374,0.00022,2]
[391076200,1760304650421,-284.77774891,0.0002202,2]
[391076201,1760304650430,-431.30218782,0.00022066,2]
[391076202,1760304650440,-2016.3484216,0.0002207,2]
[391076203,1760304650450,-823.32684396,0.0002207,2]
[391076204,1760304650459,-150.0,0.00022084,2]
[391076205,1760304650469,-151.0,0.00022097,2]
[391076206,1760304650478,-487.9180768,0.000221,2]
[391076207,1760304650487,-237.07889929,0.0002211,2]
[391076208,1760304650496,-500.0,0.0002211,2]
[391076209,1760304650505,-150.0,0.00022123,2]
[391076210,1760304650514,-450.0,0.00022158,2]
[391076211,1760304650523,-165.0,0.00022192,7]
[391076212,1760304650533,-1182.0,0.00022259,2]
[391076213,1760304650542,-2545.0,0.00022259,2]
[391076214,1760304650551,-334.5472959,0.0002237,2]
[391076215,1760304650560,-267.46074303,0.0002237,2]
[391076216,1760304650569,-187.78006525,0.00022466,2]
[391076217,1760304650578,-1000.0,0.000225,4]
[391076218,1760304650587,-163.17,0.00022603,2]
[391076219,1760304650597,-151.0,0.00022645,2]
[391076220,1760304650608,-150.0,0.00022671,2]
[391076221,1760304650617,-550.0,0.00022706,2]
[391076222,1760304650626,-515.93785716,0.0002271,2]
[391076223,1760304650635,-300.0,0.00022738,2]
[391076224,1760304650644,-666.0,0.00022738,2]
[391076225,1760304650653,-1962.93,0.00022739,2]
[391076226,1760304650662,-1962.93,0.00022739,2]
[391076227,1760304650671,-1962.93,0.00022739,2]
[391076228,1760304650680,-1962.93,0.00022739,2]
[391076229,1760304650689,-1962.93,0.00022739,2]
[391076230,1760304650698,-1962.93,0.00022739,2]
[391076231,1760304650707,-1962.93,0.00022739,2]
[391076232,1760304650716,-1962.93,0.00022739,2]
[391076233,1760304650725,-1962.93,0.00022739,2]
[391076234,1760304650734,-1962.93,0.00022739,2]
[391076235,1760304650743,-1962.93,0.00022739,2]
[391076236,1760304650752,-1962.93,0.00022739,2]
[391076237,1760304650761,-1962.93,0.00022739,2]
[391076238,1760304650771,-1962.93,0.00022739,2]
[391076239,1760304650780,-1962.93,0.00022739,2]
[391076240,1760304650789,-1962.93,0.00022739,2]
[391076241,1760304650798,-1962.93,0.00022739,2]
[391076242,1760304650807,-1962.93,0.00022739,2]
[391076243,1760304650816,-1962.93,0.00022739,2]
[391076244,1760304650886,-1962.93,0.00022739,2]
[391076245,1760304650896,-1962.93,0.00022739,2]
[391076246,1760304650905,-1962.93,0.00022739,2]
[391076247,1760304650915,-1962.93,0.00022739,2]
[391076248,1760304650924,-1963.07712209,0.00022739,2]
[391076249,1760304650933,-9710.44513478,0.00022847,2]
[391076250,1760304650942,-199.06590457,0.00022862,2]
[391076251,1760304650955,-1613.0,0.00022968,2]
[391076252,1760304650964,-240.92861851,0.00023,2]
[391076253,1760304650973,-1933.35014303,0.00023,2]
[391076254,1760304650982,-645.00000001,0.00023,2]
[391076255,1760304650991,-433.89672917,0.00023,2]
[391076256,1760304651001,-993.96121624,0.00023,2]
[391076257,1760304651010,-400.0,0.00023,2]
[391076258,1760304651019,-1001.0,0.00023,2]
[391076259,1760304651027,-160.0,0.00023014,7]
[391076260,1760304651036,-165.0,0.00023014,7]
[391076261,1760304651046,-194.72792766,0.00023014,2]
[391076262,1760304651055,-300.0,0.00023029,2]
[391076263,1760304651066,-2550.87548503,0.000231,2]
[391076264,1760304651076,-151.09931554,0.00023193,2]
[391076265,1760304651085,-1933.35014303,0.000232,2]
[391076266,1760304651094,-151.0,0.000232,7]
[391076267,1760304651103,-151.0,0.000232,7]
[391076268,1760304651113,-150.0,0.00023219,2]
[391076269,1760304651122,-650.0,0.00023254,2]
[391076270,1760304651131,-150.0,0.00023288,2]
[391076271,1760304651141,-2000.0,0.000234,2]
[391076272,1760304651150,-300.0,0.00023499,2]
[391076273,1760304651159,-1933.35014303,0.000235,2]
[391076274,1760304651168,-200.0,0.000235,2]
[391076275,1760304651177,-28253.56,0.000235,7]
[391076276,1760304651186,-328.79240744,0.00023503,2]
[391076277,1760304651195,-201.93286099,0.00023562,2]
[391076278,1760304651204,-180.0,0.00023594,2]
[391076279,1760304651213,-1933.35014303,0.000237,2]
[391076280,1760304651221,-270.85868677,0.00023706,2]
[391076281,1760304651231,-346.92554585,0.00023739,2]
[391076282,1760304651240,-277.35679052,0.00023739,2]
[391076283,1760304651249,-695.39793187,0.0002374,2]
[391076284,1760304651258,-10681.48964826,0.00023759,2]
[391076285,1760304651268,-150.0,0.00023767,2]
[391076286,1760304651277,-364.68871257,0.00023802,2]
[391076287,1760304651286,-1907.85,0.00023836,2]
[391076288,1760304651296,-194.36275892,0.00023836,2]
[391076289,1760304651305,-1933.35014303,0.000239,2]
[391076290,1760304651314,-300.0,0.00023932,2]
[391076291,1760304651323,-240.0,0.00024,2]
[391076292,1760304651332,-642.0,0.00024,2]
[391076293,1760304651342,-1006.37544939,0.00024,2]
[391076294,1760304651351,-770.00701919,0.00024,2]
[391076295,1760304651359,-1001.0,0.00024,2]
[391076296,1760304651369,-209.40437684,0.0002411,2]
[391076297,1760304651379,-168.0,0.00024164,7]
[391076298,1760304651387,-415.85382568,0.0002421,2]
[391076299,1760304651401,-150.0,0.00024314,2]
[391076300,1760304651409,-600.0,0.00024368,2]
[391076301,1760304651418,-1200.0,0.00024393,2]
[391076302,1760304651427,-505.0,0.00024397,2]
[391076303,1760304651436,-3700.0,0.00024409,2]
[391076304,1760304651445,-600.0,0.00024437,2]
[391076305,1760304651454,-199.06590457,0.00024455,2]
[391076306,1760304651463,-823.32684396,0.00024459,2]
[391076307,1760304651472,-9200.0,0.00024492,2]
[391076308,1760304651481,-500.0,0.00024505,2]
[391076309,1760304651494,-2200.0,0.00024539,2]
[391076310,1760304651505,-1400.0,0.00024586,2]
[391076311,1760304651514,-500.0,0.0002462,2]
[391076312,1760304651523,-9200.0,0.00024635,2]
[391076313,1760304651532,-588.92566424,0.0002465,2]
[391076314,1760304651541,-164.86318105,0.0002465,2]
[391076315,1760304651550,-500.0,0.00024652,2]
[391076316,1760304651559,-500.0,0.00024658,2]
[391076317,1760304651568,-1000.0,0.00024658,2]
[391076318,1760304651577,-1166.84,0.00024658,2]
[391076319,1760304651586,-217.15233878,0.00024658,2]
[391076320,1760304651595,-500.0,0.00024668,2]
[391076321,1760304651605,-600.0,0.00024669,2]
[391076322,1760304651614,-11652.53416174,0.00024672,2]
[391076323,1760304651623,-2989.29,0.00024685,30]
[391076324,1760304651632,-9200.0,0.00024722,2]
[391076325,1760304651641,-1900.0,0.00024734,2]
[391076326,1760304651650,-1800.0,0.00024748,2]
[391076327,1760304651659,-1200.0,0.00024758,2]
[391076328,1760304651667,-500.0,0.00024759,2]
[391076329,1760304651677,-2200.0,0.00024775,2]
[391076330,1760304651686,-1900.0,0.00024781,2]
[391076331,1760304651695,-28253.56,0.000248,7]
[391076332,1760304651704,-448.082555,0.000248,7]
[391076333,1760304651713,-448.082555,0.000248,7]
[391076334,1760304651723,-151.0,0.000248,7]
[391076335,1760304651732,-448.082555,0.000248,7]
[391076336,1760304651741,-448.082555,0.000248,7]
[391076337,1760304651750,-448.082555,0.000248,7]
[391076338,1760304651759,-448.082555,0.000248,7]
[391076339,1760304651768,-177.167268,0.000248,7]
[391076340,1760304651778,-177.167268,0.000248,7]
[391076341,1760304651787,-265.084906,0.000248,7]
[391076342,1760304651796,-448.082555,0.000248,7]
[391076343,1760304651804,-265.084906,0.000248,7]
[391076344,1760304651815,-448.08255002,0.000248,7]
[391076345,1760304651824,-177.167268,0.000248,7]
[391076346,1760304651833,-177.167268,0.000248,7]
[391076347,1760304651842,-265.084906,0.000248,7]
[391076348,1760304651851,-265.084906,0.000248,7]
[391076349,1760304651862,-177.167268,0.000248,7]
[391076350,1760304651871,-265.084906,0.000248,7]
[391076351,1760304651880,-177.167268,0.000248,7]
[391076352,1760304651889,-265.084906,0.000248,7]
[391076353,1760304651899,-265.084906,0.000248,7]
[391076354,1760304651908,-265.084905,0.000248,7]
[391076355,1760304651917,-177.167268,0.000248,7]
[391076356,1760304651926,-177.167278,0.000248,7]
[391076357,1760304651936,-218.17032,0.000248,7]
[391076358,1760304651945,-151.0,0.000248,7]
[391076359,1760304651954,-151.0,0.000248,7]
[391076360,1760304651964,-151.0,0.000248,7]
[391076361,1760304651973,-154.227105,0.000248,7]
[391076362,1760304651983,-154.227105,0.000248,7]
[391076363,1760304651992,-151.0,0.000248,7]
[391076364,1760304652002,-154.227105,0.000248,7]
[391076365,1760304652017,-151.0,0.000248,7]
[391076366,1760304652032,-154.227108,0.000248,7]
[391076367,1760304652041,-238.283026,0.000248,7]
[391076368,1760304652050,-151.0,0.000248,7]
[391076369,1760304652059,-151.0,0.000248,7]
[391076370,1760304652069,-151.0,0.000248,7]
[391076371,1760304652079,-236.99332,0.000248,7]
[391076372,1760304652088,-611675.92314,0.000248,3]
[391076373,1760304652097,-500.0,0.00024849,2]
[391076374,1760304652108,-150.0,0.00024862,2]
[391076375,1760304652117,-151.0,0.000249,7]
[391076376,1760304652126,-151.0,0.000249,7]
[391076377,1760304652135,-1500.0,0.000249,28]
[391076378,1760304652144,-1500.0,0.000249,28]
[391076379,1760304652152,-1500.0,0.000249,28]
[391076380,1760304652161,-757.936973,0.000249,28]
[391076381,1760304652171,-1800.0,0.000249,2]
[391076382,1760304652181,-10549.2623045,0.000249,3]
[391076383,1760304652190,-500.0,0.00024911,2]
[391076384,1760304652199,-500.0,0.00024948,2]
[391076385,1760304652208,-9200.0,0.00024977,2]
[391076386,1760304652218,-240.0,0.00025,2]
[391076387,1760304652227,-642.0,0.00025,2]
[391076388,1760304652236,-598.96979958,0.00025,2]
[391076389,1760304652245,-204.17248562,0.00025,2]
[391076390,1760304652254,-1756.00191726,0.00025,2]
[391076391,1760304652263,-360.0,0.00025,2]
[391076392,1760304652272,-2994.23302491,0.00025,2]
[391076393,1760304652282,-3181.19673136,0.00025,2]
[391076394,1760304652291,-1046.93502182,0.00025,2]
[391076395,1760304652300,-164.55399484,0.00025,2]
[391076396,1760304652309,-2527.08359051,0.00025,2]
[391076397,1760304652319,-450.0,0.00025,2]
[391076398,1760304652328,-475.28169836,0.00025,7]
[391076399,1760304652337,-475.28169836,0.00025,3]
[391076400,1760304652346,-2509.86622009,0.00025,30]
[391076401,1760304652357,-1006.57,0.00025,2]
[391076402,1760304652366,-5805.36690631,0.00025,2]
[391076403,1760304652375,-1001.0,0.00025,2]
[391076404,1760304652385,-1000.0,0.00025,4]
[391076405,1760304652399,-219.80799322,0.00025008,7]
[391076406,1760304652408,-2500.0,0.00025009,7]
[391076407,1760304652418,-2500.0,0.00025015,7]
[391076408,1760304652428,-1900.0,0.00025048,7]
[391076409,1760304652438,-1000.0,0.00025068,2]
[391076410,1760304652447,-500.0,0.00025075,7]
[391076411,1760304652456,-1200.0,0.00025076,7]
[391076412,1760304652465,-1400.0,0.00025078,7]
[391076413,1760304652476,-500.0,0.0002508,7]
[391076414,1760304652485,-500.0,0.0002509,7]
[391076415,1760304652494,-576.66101983,0.00025105,7]
[391076416,1760304652503,-359.76179104,0.00025108,2]
[391076417,1760304652512,-287.61899177,0.00025108,2]
[391076418,1760304652521,-600.0,0.00025112,7]
[391076419,1760304652530,-1400.0,0.00025124,7]
[391076420,1760304652540,-1848.0,0.00025147,2]
[391076421,1760304652550,-2500.0,0.00025184,7]
[391076422,1760304652559,-600.0,0.00025203,7]
[391076423,1760304652568,-225.18697532,0.00025206,2]
[391076424,1760304652578,-500.0,0.00025249,7]
[391076425,1760304652587,-1182.0,0.00025259,2]
[391076426,1760304652596,-2545.0,0.00025259,2]
[391076427,1760304652606,-500.0,0.00025337,7]
[391076428,1760304652615,-500.0,0.00025374,7]
[391076429,1760304652624,-2200.0,0.00025386,7]
[391076430,1760304652634,-500.0,0.00025401,7]
[391076431,1760304652642,-3700.0,0.0002541,7]
[391076432,1760304652652,-150.0,0.0002541,2]
[391076433,1760304652661,-500.0,0.00025422,7]
[391076434,1760304652670,-1200.0,0.00025424,7]
[391076435,1760304652679,-459.70686109,0.00025479,2]
[391076436,1760304652688,-1006.57,0.000255,2]
[391076437,1760304652697,-500.0,0.00025506,7]
[391076438,1760304652706,-2200.0,0.00025512,7]
[391076439,1760304652715,-1400.0,0.00025534,7]
[391076440,1760304652723,-1900.0,0.00025537,7]
[391076441,1760304652732,-314.31912622,0.00025562,7]
[391076442,1760304652741,-600.0,0.00025567,7]
[391076443,1760304652751,-284.77774891,0.00025579,2]
[391076444,1760304652761,-12623.57867522,0.00025584,3]
[391076445,1760304652770,-1900.0,0.00025594,7]
[391076446,1760304652779,-2500.0,0.00025649,7]
[391076447,1760304652788,-1200.0,0.00025667,7]
[391076448,1760304652798,-3700.0,0.00025705,7]
[391076449,1760304652807,-3700.0,0.00025747,7]
[391076450,1760304652816,-233.51889341,0.00025754,2]
[391076451,1760304652825,-9200.0,0.00025769,7]
[391076452,1760304652834,-1800.0,0.00025772,7]
[391076453,1760304652844,-3700.0,0.00025773,7]
[391076454,1760304652854,-474.32,0.00025774,2]
[391076455,1760304652863,-600.0,0.00025775,7]
[391076456,1760304652872,-1000.0,0.00025787,9]
[391076457,1760304652881,-1000.0,0.00025787,9]
[391076458,1760304652891,-1000.0,0.00025787,9]
[391076459,1760304652900,-1000.0,0.00025787,9]
[391076460,1760304652910,-1000.0,0.00025787,9]
[391076461,1760304652919,-1000.0,0.00025787,9]
[391076462,1760304652928,-1000.0,0.00025787,9]
[391076463,1760304652938,-1000.0,0.00025787,9]
[391076464,1760304652947,-475.28169836,0.000258,3]
[391076465,1760304652956,-500.0,0.00025822,7]
[391076466,1760304652966,-154.69316951,0.0002585,2]
[391076467,1760304652976,-500.0,0.00025874,7]
[391076468,1760304652985,-5005.26683485,0.00025879,2]
[391076469,1760304652995,-1200.0,0.00025924,7]
[391076470,1760304653004,-500.0,0.00025925,7]
[391076471,1760304653014,-1900.0,0.00025948,7]
[391076472,1760304653023,-150.0,0.00025958,2]
[391076473,1760304653033,-590.72700695,0.0002599,2]
[391076474,1760304653043,-240.0,0.00026,2]
[391076475,1760304653053,-642.0,0.00026,2]
[391076476,1760304653062,-1000.0,0.00026,2]
[391076477,1760304653072,-212.88357779,0.00026,2]
[391076478,1760304653081,-160.21105815,0.00026,2]
[391076479,1760304653090,-1001.0,0.00026,2]
[391076480,1760304653100,-1006.57,0.00026,30]
[391076481,1760304653110,-1400.0,0.00026031,7]
[391076482,1760304653119,-199.06590457,0.00026047,2]
[391076483,1760304653128,-1900.0,0.00026051,7]
[391076484,1760304653138,-3700.0,0.00026085,7]
[391076485,1760304653147,-2200.0,0.00026121,7]
[391076486,1760304653156,-1900.0,0.00026162,7]
[391076487,1760304653166,-1800.0,0.00026205,7]
[391076488,1760304653175,-2500.0,0.00026227,7]
[391076489,1760304653184,-475.28169836,0.00026249,2]
[391076490,1760304653194,-1200.0,0.0002626,7]
[391076491,1760304653204,-28253.56,0.000263,7]
[391076492,1760304653213,-242.15909246,0.00026302,2]
[391076493,1760304653222,-1900.0,0.0002632,7]
[391076494,1760304653231,-896.6,0.00026356,2]
[391076495,1760304653241,-328.79240744,0.00026371,2]
[391076496,1760304653251,-2500.0,0.00026383,7]
[391076497,1760304653260,-1800.0,0.00026419,7]
[391076498,1760304653270,-500.0,0.00026452,7]
[391076499,1760304653280,-373.07297731,0.00026477,2]
[391076500,1760304653291,-298.26089446,0.00026477,2]
[391076501,1760304653300,-721.12765535,0.00026479,2]
[391076502,1760304653310,-2200.0,0.00026479,7]
[391076503,1760304653319,-500.0,0.00026488,2]
[391076504,1760304653329,-500.0,0.00026488,2]
[391076505,1760304653338,-3700.0,0.00026488,7]
[391076506,1760304653348,-13594.6231887,0.00026497,5]
[391076507,1760304653359,-1006.57,0.000265,30]
[391076508,1760304653368,-150.0,0.00026506,2]
[391076509,1760304653378,-500.0,0.00026525,7]
[391076510,1760304653387,-9200.0,0.00026536,7]
[391076511,1760304653399,-2500.0,0.00026554,7]
[391076512,1760304653408,-500.0,0.00026562,7]
[391076513,1760304653418,-3700.0,0.00026567,7]
[391076514,1760304653428,-165.0,0.00026581,7]
[391076515,1760304653437,-500.0,0.00026633,7]
[391076516,1760304653447,-3700.0,0.00026642,7]
[391076517,1760304653457,-150.0,0.00026644,7]
[391076518,1760304653466,-3700.0,0.00026674,7]
[391076519,1760304653476,-384.19,0.00026676,2]
[391076520,1760304653485,-150.0,0.00026744,7]
[391076521,1760304653494,-1502.95,0.00026772,2]